[Event "Titled Tuesday Blitz January 17 Early 2023"]
[White "Sihite, Chelsie Monica Ignesias"]
[Black "Mammadzada, Gunay"]
[WhiteFideId "7101198"]
[BlackFideId "13403729"]
[WhiteElo "2266"]
[BlackElo "2449"]
[Result "1/2-1/2"]
[Round "10"]
[TimeControl "180+2"]
[Date "2023.01.17"]
[WhiteClock "0:00:18"]
[BlackClock "0:00:11"]

1. c4 {[%clk 0:02:55]}  c6 {[%clk 0:02:55]} 2. Nf3 {[%clk 0:02:53]}  Nf6 {[%clk 0:02:53]} 3. g3 {[%clk 0:02:53]}  d5 {[%clk 0:02:52]} 4. cxd5 {[%clk 0:02:52]}  cxd5 {[%clk 0:02:51]} 5. Bg2 {[%clk 0:02:52]}  Nc6 {[%clk 0:02:51]} 6. O-O {[%clk 0:02:51]}  e5 {[%clk 0:02:48]} 7. d3 {[%clk 0:02:51]}  Be7 {[%clk 0:02:48]} 8. Nc3 {[%clk 0:02:51]}  O-O {[%clk 0:02:47]} 9. Bg5 {[%clk 0:02:49]}  Be6 {[%clk 0:02:46]} 10. Bxf6 {[%clk 0:02:49]}  Bxf6 {[%clk 0:02:47]} 11. Rc1 {[%clk 0:02:48]}  Qd6 {[%clk 0:02:45]} 12. a3 {[%clk 0:02:42]}  a6 {[%clk 0:02:43]} 13. Na4 {[%clk 0:02:36]}  Rac8 {[%clk 0:02:31]} 14. Nc5 {[%clk 0:02:33]}  Rc7 {[%clk 0:02:30]} 15. Nxe6 {[%clk 0:02:31]}  Qxe6 {[%clk 0:02:30]} 16. Qd2 {[%clk 0:02:29]}  e4 {[%clk 0:02:27]} 17. dxe4 {[%clk 0:02:15]}  dxe4 {[%clk 0:02:28]} 18. Ng5 {[%clk 0:02:15]}  Bxg5 {[%clk 0:02:17]} 19. Qxg5 {[%clk 0:02:15]}  Rd7 {[%clk 0:02:16]} 20. Qe3 {[%clk 0:01:31]}  f5 {[%clk 0:02:14]} 21. f3 {[%clk 0:01:23]}  Qe5 {[%clk 0:01:39]} 22. fxe4 {[%clk 0:01:03]}  Qxb2 {[%clk 0:01:39]} 23. exf5 {[%clk 0:01:02]}  Re7 {[%clk 0:01:33]} 24. Qc5 {[%clk 0:00:51]}  Qd4+ {[%clk 0:01:11]} 25. e3 {[%clk 0:00:42]}  Qxe3+ {[%clk 0:00:46]} 26. Qxe3 {[%clk 0:00:41]}  Rxe3 {[%clk 0:00:47]} 27. Bd5+ {[%clk 0:00:41]}  Kh8 {[%clk 0:00:47]} 28. Bxc6 {[%clk 0:00:40]}  bxc6 {[%clk 0:00:48]} 29. Rxc6 {[%clk 0:00:41]}  Rxa3 {[%clk 0:00:48]} 30. f6 {[%clk 0:00:38]}  gxf6 {[%clk 0:00:46]} 31. Rfxf6 {[%clk 0:00:39]}  Rxf6 {[%clk 0:00:46]} 32. Rxf6 {[%clk 0:00:40]}  Kg7 {[%clk 0:00:45]} 33. Rb6 {[%clk 0:00:40]}  a5 {[%clk 0:00:45]} 34. Kg2 {[%clk 0:00:40]}  a4 {[%clk 0:00:45]} 35. Kh3 {[%clk 0:00:41]}  Ra2 {[%clk 0:00:43]} 36. Ra6 {[%clk 0:00:41]}  a3 {[%clk 0:00:44]} 37. Kg4 {[%clk 0:00:42]}  h5+ {[%clk 0:00:38]} 38. Kxh5 {[%clk 0:00:38]}  Rxh2+ {[%clk 0:00:38]} 39. Kg5 {[%clk 0:00:38]}  a2 {[%clk 0:00:38]} 40. g4 {[%clk 0:00:38]}  Rf2 {[%clk 0:00:37]} 41. Ra7+ {[%clk 0:00:38]}  Kf8 {[%clk 0:00:37]} 42. Kg6 {[%clk 0:00:35]}  Rg2 {[%clk 0:00:20]} 43. g5 {[%clk 0:00:36]}  Rf2 {[%clk 0:00:19]} 44. Ra6 {[%clk 0:00:26]}  Ke7 {[%clk 0:00:18]} 45. Ra7+ {[%clk 0:00:25]}  Kd6 {[%clk 0:00:15]} 46. Kg7 {[%clk 0:00:25]}  Kc5 {[%clk 0:00:14]} 47. g6 {[%clk 0:00:26]}  Kb4 {[%clk 0:00:15]} 48. Kg8 {[%clk 0:00:25]}  Kb3 {[%clk 0:00:15]} 49. g7 {[%clk 0:00:24]}  Kb2 {[%clk 0:00:15]} 50. Rb7+ {[%clk 0:00:24]}  Kc1 {[%clk 0:00:13]} 51. Rc7+ {[%clk 0:00:22]}  Kb1 {[%clk 0:00:13]} 52. Rb7+ {[%clk 0:00:22]}  Kc1 {[%clk 0:00:13]} 53. Ra7 {[%clk 0:00:22]}  Kb1 {[%clk 0:00:13]} 54. Rb7+ {[%clk 0:00:18]}  Kc1 {[%clk 0:00:11]} 1/2-1/2


[Site "https://www.chess.com"]

[Event "Titled Tuesday Blitz January 17 Early 2023"]
[White "Erzhanov, Arman"]
[Black "Andreev, Eduard"]
[WhiteFideId "4138821"]
[BlackFideId "14103400"]
[WhiteElo "2228"]
[BlackElo "2413"]
[Result "0-1"]
[Round "10"]
[TimeControl "180+2"]
[Date "2023.01.17"]
[WhiteClock "0:00:25"]
[BlackClock "0:01:03"]

1. e4 {[%clk 0:02:55]}  c5 {[%clk 0:02:58]} 2. Nf3 {[%clk 0:02:55]}  d6 {[%clk 0:02:58]} 3. Bb5+ {[%clk 0:02:54]}  Nd7 {[%clk 0:02:58]} 4. d4 {[%clk 0:02:54]}  cxd4 {[%clk 0:02:56]} 5. Qxd4 {[%clk 0:02:54]}  a6 {[%clk 0:02:56]} 6. Bxd7+ {[%clk 0:02:53]}  Bxd7 {[%clk 0:02:52]} 7. O-O {[%clk 0:02:52]}  e5 {[%clk 0:02:47]} 8. Qd3 {[%clk 0:02:52]}  Qc7 {[%clk 0:02:45]} 9. Nc3 {[%clk 0:02:49]}  Bc6 {[%clk 0:02:40]} 10. Nd2 {[%clk 0:02:45]}  Nf6 {[%clk 0:02:39]} 11. Nc4 {[%clk 0:02:44]}  h6 {[%clk 0:02:38]} 12. Ne3 {[%clk 0:02:43]}  O-O-O {[%clk 0:02:25]} 13. Ncd5 {[%clk 0:02:29]}  Nxd5 {[%clk 0:02:17]} 14. Nxd5 {[%clk 0:02:29]}  Bxd5 {[%clk 0:02:17]} 15. Qxd5 {[%clk 0:02:30]}  Qd7 {[%clk 0:02:11]} 16. Be3 {[%clk 0:02:28]}  Qe6 {[%clk 0:02:10]} 17. Qa5 {[%clk 0:02:24]}  d5 {[%clk 0:02:07]} 18. Bb6 {[%clk 0:01:56]}  Rd7 {[%clk 0:02:05]} 19. Rfd1 {[%clk 0:01:50]}  d4 {[%clk 0:01:53]} 20. c3 {[%clk 0:01:50]}  d3 {[%clk 0:01:42]} 21. c4 {[%clk 0:01:39]}  f6 {[%clk 0:01:34]} 22. Rd2 {[%clk 0:01:31]}  Qc6 {[%clk 0:01:31]} 23. f3 {[%clk 0:01:25]}  Qxc4 {[%clk 0:01:22]} 24. Rad1 {[%clk 0:01:13]}  Bb4 {[%clk 0:01:17]} 25. b3 {[%clk 0:00:27]}  Bxa5 {[%clk 0:01:16]} 26. bxc4 {[%clk 0:00:27]}  Bxb6+ {[%clk 0:01:16]} 27. Kf1 {[%clk 0:00:28]}  Be3 {[%clk 0:01:11]} 28. Rxd3 {[%clk 0:00:28]}  Rxd3 {[%clk 0:01:11]} 29. Rxd3 {[%clk 0:00:29]}  Bd4 {[%clk 0:01:11]} 30. f4 {[%clk 0:00:28]}  Kc7 {[%clk 0:01:11]} 31. fxe5 {[%clk 0:00:28]}  Bxe5 {[%clk 0:01:10]} 32. g3 {[%clk 0:00:26]}  Rd8 {[%clk 0:01:09]} 33. Rd5 {[%clk 0:00:21]}  Rxd5 {[%clk 0:01:07]} 34. cxd5 {[%clk 0:00:19]}  Kd6 {[%clk 0:01:06]} 35. Ke2 {[%clk 0:00:20]}  f5 {[%clk 0:01:05]} 36. Kd3 {[%clk 0:00:21]}  fxe4+ {[%clk 0:01:05]} 37. Kxe4 {[%clk 0:00:22]}  b5 {[%clk 0:01:05]} 38. h3 {[%clk 0:00:21]}  a5 {[%clk 0:01:05]} 39. g4 {[%clk 0:00:21]}  b4 {[%clk 0:01:05]} 40. h4 {[%clk 0:00:21]}  a4 {[%clk 0:01:06]} 41. Kd3 {[%clk 0:00:21]}  b3 {[%clk 0:01:05]} 42. axb3 {[%clk 0:00:22]}  axb3 {[%clk 0:01:06]} 43. g5 {[%clk 0:00:21]}  hxg5 {[%clk 0:01:05]} 44. hxg5 {[%clk 0:00:22]}  Kxd5 {[%clk 0:01:06]} 45. Kd2 {[%clk 0:00:22]}  Ke6 {[%clk 0:01:05]} 46. g6 {[%clk 0:00:21]}  Kf6 {[%clk 0:01:04]} 47. Kd3 {[%clk 0:00:22]}  Kxg6 {[%clk 0:01:04]} 48. Kd2 {[%clk 0:00:22]}  Kf5 {[%clk 0:01:04]} 49. Kc1 {[%clk 0:00:23]}  g5 {[%clk 0:01:04]} 50. Kd2 {[%clk 0:00:24]}  g4 {[%clk 0:01:05]} 51. Ke2 {[%clk 0:00:24]}  Ke4 {[%clk 0:01:05]} 52. Kd2 {[%clk 0:00:25]}  b2 {[%clk 0:01:03]} 53. Kc2 {[%clk 0:00:24]}  g3 {[%clk 0:01:03]} 54. Kb1 {[%clk 0:00:25]}  g2 {[%clk 0:01:03]} 0-1


[Site "https://www.chess.com"]

[Event "Titled Tuesday Blitz January 17 Early 2023"]
[White "Zemlyanskii, Ivan"]
[Black "Manukian, Artak"]
[WhiteFideId "24249971"]
[BlackFideId "13301373"]
[WhiteElo "2300"]
[BlackElo "2196"]
[Result "1-0"]
[Round "10"]
[TimeControl "180+2"]
[Date "2023.01.17"]
[WhiteClock "0:00:08"]
[BlackClock "0:00:02"]

1. d4 {[%clk 0:03:00]}  Nf6 {[%clk 0:02:58]} 2. c4 {[%clk 0:03:01]}  g6 {[%clk 0:02:59]} 3. Nf3 {[%clk 0:03:02]}  Bg7 {[%clk 0:02:59]} 4. Nc3 {[%clk 0:03:03]}  O-O {[%clk 0:02:58]} 5. e4 {[%clk 0:03:03]}  d6 {[%clk 0:02:59]} 6. Be2 {[%clk 0:03:04]}  e5 {[%clk 0:02:58]} 7. O-O {[%clk 0:03:05]}  Nc6 {[%clk 0:02:57]} 8. Be3 {[%clk 0:03:03]}  Ng4 {[%clk 0:02:57]} 9. Bg5 {[%clk 0:03:03]}  f6 {[%clk 0:02:57]} 10. Bc1 {[%clk 0:03:04]}  Nh6 {[%clk 0:02:51]} 11. dxe5 {[%clk 0:03:01]}  Nxe5 {[%clk 0:02:44]} 12. Nxe5 {[%clk 0:02:59]}  fxe5 {[%clk 0:02:45]} 13. Be3 {[%clk 0:02:50]}  Nf7 {[%clk 0:02:36]} 14. c5 {[%clk 0:02:48]}  Be6 {[%clk 0:02:32]} 15. cxd6 {[%clk 0:02:48]}  Nxd6 {[%clk 0:02:28]} 16. Rc1 {[%clk 0:02:47]}  Nc4 {[%clk 0:02:19]} 17. Qb3 {[%clk 0:02:39]}  Nxe3 {[%clk 0:01:41]} 18. Qxe6+ {[%clk 0:02:37]}  Kh8 {[%clk 0:01:42]} 19. fxe3 {[%clk 0:02:38]}  Qd2 {[%clk 0:01:36]} 20. Bf3 {[%clk 0:02:19]}  Qxb2 {[%clk 0:01:32]} 21. Na4 {[%clk 0:01:49]}  Qa3 {[%clk 0:01:28]} 22. Qb3 {[%clk 0:01:44]}  Qe7 {[%clk 0:01:19]} 23. Qxb7 {[%clk 0:01:41]}  Rab8 {[%clk 0:01:12]} 24. Qxc7 {[%clk 0:01:37]}  Qa3 {[%clk 0:01:04]} 25. Nc5 {[%clk 0:00:50]}  Rbc8 {[%clk 0:00:59]} 26. Qd6 {[%clk 0:00:40]}  Qxe3+ {[%clk 0:00:54]} 27. Kh1 {[%clk 0:00:39]}  Qa3 {[%clk 0:00:51]} 28. Qd5 {[%clk 0:00:34]}  Rfd8 {[%clk 0:00:47]} 29. Qb3 {[%clk 0:00:34]}  Qxb3 {[%clk 0:00:35]} 30. Nxb3 {[%clk 0:00:35]}  h5 {[%clk 0:00:24]} 31. Kg1 {[%clk 0:00:27]}  Bh6 {[%clk 0:00:24]} 32. Rxc8 {[%clk 0:00:26]}  Rxc8 {[%clk 0:00:24]} 33. Rd1 {[%clk 0:00:22]}  Be3+ {[%clk 0:00:21]} 34. Kf1 {[%clk 0:00:22]}  Rc2 {[%clk 0:00:21]} 35. Rd3 {[%clk 0:00:20]}  Bb6 {[%clk 0:00:20]} 36. Nd2 {[%clk 0:00:21]}  Rxa2 {[%clk 0:00:19]} 37. Nc4 {[%clk 0:00:21]}  Ra1+ {[%clk 0:00:16]} 38. Ke2 {[%clk 0:00:22]}  Bd4 {[%clk 0:00:16]} 39. Nd6 {[%clk 0:00:16]}  a5 {[%clk 0:00:15]} 40. Nb5 {[%clk 0:00:14]}  Ra2+ {[%clk 0:00:12]} 41. Rd2 {[%clk 0:00:13]}  Rxd2+ {[%clk 0:00:10]} 42. Kxd2 {[%clk 0:00:14]}  Bg1 {[%clk 0:00:09]} 43. h3 {[%clk 0:00:14]}  Kg7 {[%clk 0:00:08]} 44. Kc3 {[%clk 0:00:14]}  Kf6 {[%clk 0:00:08]} 45. Nc7 {[%clk 0:00:10]}  Kg5 {[%clk 0:00:06]} 46. Ne6+ {[%clk 0:00:10]}  Kh4 {[%clk 0:00:07]} 47. Kb3 {[%clk 0:00:08]}  g5 {[%clk 0:00:03]} 48. Ng7 {[%clk 0:00:06]}  g4 {[%clk 0:00:02]} 49. hxg4 {[%clk 0:00:07]}  hxg4 {[%clk 0:00:03]} 50. Be2 {[%clk 0:00:08]}  Kg3 {[%clk 0:00:02]} 51. Nf5+ {[%clk 0:00:08]} 1-0


[Site "https://www.chess.com"]

[Event "Titled Tuesday Blitz January 17 Early 2023"]
[White "Berezin, Viktor"]
[Black "Gauri, Shankar"]
[WhiteFideId "14107872"]
[BlackFideId "5041350"]
[WhiteElo "2307"]
[BlackElo "2360"]
[Result "1-0"]
[Round "10"]
[TimeControl "180+2"]
[Date "2023.01.17"]
[WhiteClock "0:00:09"]
[BlackClock "0:00:01"]

1. d4 {[%clk 0:03:00]}  Nf6 {[%clk 0:02:59]} 2. c4 {[%clk 0:02:59]}  e6 {[%clk 0:02:59]} 3. Nf3 {[%clk 0:02:59]}  b6 {[%clk 0:02:56]} 4. g3 {[%clk 0:02:59]}  Bb7 {[%clk 0:02:54]} 5. Bg2 {[%clk 0:03:00]}  Bb4+ {[%clk 0:02:54]} 6. Bd2 {[%clk 0:02:59]}  Be7 {[%clk 0:02:55]} 7. O-O {[%clk 0:03:00]}  c6 {[%clk 0:02:54]} 8. Nc3 {[%clk 0:02:59]}  d5 {[%clk 0:02:55]} 9. Qc2 {[%clk 0:02:59]}  dxc4 {[%clk 0:02:50]} 10. e4 {[%clk 0:02:57]}  b5 {[%clk 0:02:49]} 11. e5 {[%clk 0:02:55]}  Nd5 {[%clk 0:02:47]} 12. Ne4 {[%clk 0:02:56]}  Na6 {[%clk 0:02:23]} 13. b3 {[%clk 0:02:45]}  Nab4 {[%clk 0:02:13]} 14. Qd1 {[%clk 0:02:43]}  Nd3 {[%clk 0:02:07]} 15. bxc4 {[%clk 0:02:42]}  bxc4 {[%clk 0:02:07]} 16. Rb1 {[%clk 0:02:30]}  Ba6 {[%clk 0:02:06]} 17. Qa4 {[%clk 0:02:14]}  Bb5 {[%clk 0:02:05]} 18. Rxb5 {[%clk 0:02:14]}  cxb5 {[%clk 0:02:05]} 19. Qxb5+ {[%clk 0:02:15]}  Qd7 {[%clk 0:02:00]} 20. Qxc4 {[%clk 0:02:14]}  N3b4 {[%clk 0:01:56]} 21. a3 {[%clk 0:02:02]}  Nc6 {[%clk 0:01:37]} 22. Bg5 {[%clk 0:02:01]}  O-O {[%clk 0:01:29]} 23. Bxe7 {[%clk 0:02:01]}  Ncxe7 {[%clk 0:01:27]} 24. Nc5 {[%clk 0:01:54]}  Qc7 {[%clk 0:01:19]} 25. Ng5 {[%clk 0:01:52]}  Rab8 {[%clk 0:01:05]} 26. Qd3 {[%clk 0:01:48]}  g6 {[%clk 0:00:49]} 27. h4 {[%clk 0:01:43]}  Rb2 {[%clk 0:00:30]} 28. h5 {[%clk 0:01:34]}  Qa5 {[%clk 0:00:23]} 29. Nge4 {[%clk 0:01:18]}  Nf5 {[%clk 0:00:18]} 30. Nd7 {[%clk 0:01:02]}  Qb5 {[%clk 0:00:17]} 31. Ndf6+ {[%clk 0:00:52]}  Nxf6 {[%clk 0:00:15]} 32. Nxf6+ {[%clk 0:00:53]}  Kg7 {[%clk 0:00:15]} 33. Qe4 {[%clk 0:00:38]}  Qe2 {[%clk 0:00:14]} 34. Qf4 {[%clk 0:00:38]}  Qd2 {[%clk 0:00:14]} 35. Qg4 {[%clk 0:00:39]}  Rfb8 {[%clk 0:00:11]} 36. hxg6 {[%clk 0:00:36]}  hxg6 {[%clk 0:00:11]} 37. Be4 {[%clk 0:00:27]}  Rb1 {[%clk 0:00:07]} 38. Bxb1 {[%clk 0:00:26]}  Nxd4 {[%clk 0:00:05]} 39. Be4 {[%clk 0:00:22]}  Rh8 {[%clk 0:00:03]} 40. Kg2 {[%clk 0:00:19]}  Nc2 {[%clk 0:00:02]} 41. Bxc2 {[%clk 0:00:18]}  Qxc2 {[%clk 0:00:02]} 42. Ne4 {[%clk 0:00:17]}  Rh5 {[%clk 0:00:02]} 43. Ng5 {[%clk 0:00:15]}  Qc6+ {[%clk 0:00:01]} 44. Qf3 {[%clk 0:00:12]}  Qc2 {[%clk 0:00:01]} 45. Qf6+ {[%clk 0:00:11]}  Kh6 {[%clk 0:00:01]} 46. Nxf7+ {[%clk 0:00:10]}  Kh7 {[%clk 0:00:01]} 47. Qh8# {[%clk 0:00:09]} 1-0


[Site "https://www.chess.com"]

[Event "Titled Tuesday Blitz January 17 Early 2023"]
[White "Kuznetsov, Mikhail"]
[Black "Shuvalova, Polina"]
[WhiteFideId "4117190"]
[BlackFideId "24171760"]
[WhiteElo "2050"]
[BlackElo "2484"]
[Result "1-0"]
[Round "10"]
[TimeControl "180+2"]
[Date "2023.01.17"]
[WhiteClock "0:00:04"]
[BlackClock "0:00:01"]

1. Nf3 {[%clk 0:03:00]}  Nf6 {[%clk 0:02:54]} 2. g3 {[%clk 0:02:59]}  d5 {[%clk 0:02:53]} 3. Bg2 {[%clk 0:02:58]}  g6 {[%clk 0:02:52]} 4. b3 {[%clk 0:02:58]}  Bg7 {[%clk 0:02:52]} 5. Bb2 {[%clk 0:02:58]}  O-O {[%clk 0:02:53]} 6. O-O {[%clk 0:02:58]}  c5 {[%clk 0:02:52]} 7. c4 {[%clk 0:02:58]}  d4 {[%clk 0:02:49]} 8. b4 {[%clk 0:02:59]}  Nc6 {[%clk 0:02:43]} 9. bxc5 {[%clk 0:02:55]}  e5 {[%clk 0:02:42]} 10. d3 {[%clk 0:02:48]}  Nd7 {[%clk 0:02:38]} 11. Ba3 {[%clk 0:02:40]}  Re8 {[%clk 0:02:35]} 12. Nfd2 {[%clk 0:02:39]}  f5 {[%clk 0:02:28]} 13. Nb3 {[%clk 0:02:34]}  a5 {[%clk 0:02:25]} 14. N1d2 {[%clk 0:02:18]}  a4 {[%clk 0:02:25]} 15. Nc1 {[%clk 0:02:19]}  Qa5 {[%clk 0:02:20]} 16. Bd5+ {[%clk 0:02:03]}  Kh8 {[%clk 0:02:20]} 17. Nf3 {[%clk 0:01:54]}  Bf6 {[%clk 0:02:12]} 18. Qd2 {[%clk 0:01:38]}  Qc7 {[%clk 0:01:38]} 19. Ng5 {[%clk 0:01:22]}  Nd8 {[%clk 0:01:30]} 20. h4 {[%clk 0:01:10]}  Nxc5 {[%clk 0:01:18]} 21. h5 {[%clk 0:01:05]}  Nce6 {[%clk 0:01:11]} 22. Nxe6 {[%clk 0:00:31]}  Bxe6 {[%clk 0:01:10]} 23. Bxe6 {[%clk 0:00:26]}  Nxe6 {[%clk 0:01:09]} 24. hxg6 {[%clk 0:00:27]}  hxg6 {[%clk 0:01:09]} 25. Qh6+ {[%clk 0:00:16]}  Qh7 {[%clk 0:01:08]} 26. Qxh7+ {[%clk 0:00:16]}  Kxh7 {[%clk 0:01:09]} 27. Rb1 {[%clk 0:00:17]}  Ra7 {[%clk 0:00:54]} 28. e3 {[%clk 0:00:13]}  Rd8 {[%clk 0:00:45]} 29. Rb6 {[%clk 0:00:11]}  Re8 {[%clk 0:00:41]} 30. Ne2 {[%clk 0:00:10]}  dxe3 {[%clk 0:00:34]} 31. fxe3 {[%clk 0:00:10]}  Bg5 {[%clk 0:00:35]} 32. Kf2 {[%clk 0:00:07]}  Nd8 {[%clk 0:00:23]} 33. Rh1+ {[%clk 0:00:06]}  Kg7 {[%clk 0:00:23]} 34. Nc3 {[%clk 0:00:06]}  Ra8 {[%clk 0:00:17]} 35. Nd5 {[%clk 0:00:03]}  Rc8 {[%clk 0:00:17]} 36. Bd6 {[%clk 0:00:03]}  Re6 {[%clk 0:00:11]} 37. c5 {[%clk 0:00:03]}  Rc6 {[%clk 0:00:10]} 38. Rxc6 {[%clk 0:00:02]}  Nxc6 {[%clk 0:00:11]} 39. Nc7 {[%clk 0:00:03]}  Rf6 {[%clk 0:00:09]} 40. Rb1 {[%clk 0:00:04]}  Rf7 {[%clk 0:00:07]} 41. Rxb7 {[%clk 0:00:04]}  e4 {[%clk 0:00:07]} 42. d4 {[%clk 0:00:04]}  Nd8 {[%clk 0:00:05]} 43. Rb8 {[%clk 0:00:04]}  Nc6 {[%clk 0:00:06]} 44. Ne8+ {[%clk 0:00:04]}  Kh6 {[%clk 0:00:05]} 45. Ra8 {[%clk 0:00:04]}  Bf6 {[%clk 0:00:03]} 46. Nxf6 {[%clk 0:00:04]}  Rxf6 {[%clk 0:00:03]} 47. Rxa4 {[%clk 0:00:03]}  Rf7 {[%clk 0:00:02]} 48. Ra6 {[%clk 0:00:03]}  Nb4 {[%clk 0:00:03]} 49. Rb6 {[%clk 0:00:03]}  Nd3+ {[%clk 0:00:04]} 50. Ke2 {[%clk 0:00:03]}  Ra7 {[%clk 0:00:05]} 51. c6 {[%clk 0:00:02]}  Rxa2+ {[%clk 0:00:05]} 52. Kd1 {[%clk 0:00:01]}  Nf2+ {[%clk 0:00:04]} 53. Kc1 {[%clk 0:00:01]}  Nd3+ {[%clk 0:00:04]} 54. Kb1 {[%clk 0:00:02]}  Re2 {[%clk 0:00:03]} 55. c7 {[%clk 0:00:03]}  Re1+ {[%clk 0:00:03]} 56. Ka2 {[%clk 0:00:02]}  Rc1 {[%clk 0:00:04]} 57. Rb8 {[%clk 0:00:03]}  Rc2+ {[%clk 0:00:03]} 58. Kb3 {[%clk 0:00:03]}  Rc6 {[%clk 0:00:01]} 59. c8=Q {[%clk 0:00:04]}  Rxc8 {[%clk 0:00:02]} 60. Rxc8 {[%clk 0:00:05]}  Kh5 {[%clk 0:00:02]} 61. Rh8+ {[%clk 0:00:04]}  Kg4 {[%clk 0:00:02]} 62. Kc4 {[%clk 0:00:04]}  Nf2 {[%clk 0:00:02]} 63. Bf4 {[%clk 0:00:04]}  Kf3 {[%clk 0:00:01]} 64. d5 {[%clk 0:00:04]} 1-0


[Site "https://www.chess.com"]

[Event "Titled Tuesday Blitz January 17 Early 2023"]
[White "Santos Flores, Alberto"]
[Black "Piesik, Piotr"]
[WhiteFideId "3601234"]
[BlackFideId "1136194"]
[WhiteElo "2164"]
[BlackElo "2426"]
[Result "0-1"]
[Round "10"]
[TimeControl "180+2"]
[Date "2023.01.17"]
[WhiteClock "0:01:02"]
[BlackClock "0:01:29"]

1. e4 {[%clk 0:03:00]}  g6 {[%clk 0:02:58]} 2. d4 {[%clk 0:03:00]}  Bg7 {[%clk 0:02:59]} 3. Nc3 {[%clk 0:03:00]}  c6 {[%clk 0:02:59]} 4. Nf3 {[%clk 0:03:00]}  d6 {[%clk 0:02:59]} 5. Be3 {[%clk 0:02:58]}  Nf6 {[%clk 0:02:59]} 6. Qd2 {[%clk 0:02:58]}  O-O {[%clk 0:02:59]} 7. Bh6 {[%clk 0:02:57]}  b5 {[%clk 0:02:59]} 8. Bd3 {[%clk 0:02:57]}  b4 {[%clk 0:02:59]} 9. Ne2 {[%clk 0:02:57]}  c5 {[%clk 0:02:59]} 10. h4 {[%clk 0:02:45]}  Bxh6 {[%clk 0:02:58]} 11. Qxh6 {[%clk 0:02:45]}  Ng4 {[%clk 0:02:58]} 12. Qd2 {[%clk 0:02:45]}  h5 {[%clk 0:02:58]} 13. Ng3 {[%clk 0:02:37]}  Nc6 {[%clk 0:02:54]} 14. Bc4 {[%clk 0:02:31]}  Nxd4 {[%clk 0:02:49]} 15. Nxd4 {[%clk 0:02:31]}  cxd4 {[%clk 0:02:49]} 16. Qxd4 {[%clk 0:02:29]}  Qb6 {[%clk 0:02:35]} 17. Qxb6 {[%clk 0:02:24]}  axb6 {[%clk 0:02:36]} 18. Bb3 {[%clk 0:02:17]}  Ba6 {[%clk 0:02:32]} 19. f3 {[%clk 0:02:15]}  Ne5 {[%clk 0:02:23]} 20. O-O-O {[%clk 0:02:07]}  Rfc8 {[%clk 0:02:22]} 21. Rd4 {[%clk 0:02:04]}  Bc4 {[%clk 0:02:18]} 22. Kb1 {[%clk 0:01:57]}  b5 {[%clk 0:02:18]} 23. Nf1 {[%clk 0:01:52]}  Rc5 {[%clk 0:02:14]} 24. Ne3 {[%clk 0:01:51]}  Rac8 {[%clk 0:02:13]} 25. Nd5 {[%clk 0:01:36]}  Bxd5 {[%clk 0:02:09]} 26. Rxd5 {[%clk 0:01:36]}  Kf8 {[%clk 0:02:03]} 27. Rhd1 {[%clk 0:01:33]}  Rxd5 {[%clk 0:02:00]} 28. Rxd5 {[%clk 0:01:31]}  Rc5 {[%clk 0:01:59]} 29. Rd4 {[%clk 0:01:27]}  Nc6 {[%clk 0:01:58]} 30. Rd2 {[%clk 0:01:19]}  g5 {[%clk 0:01:48]} 31. Bd5 {[%clk 0:01:12]}  gxh4 {[%clk 0:01:45]} 32. Bxc6 {[%clk 0:01:12]}  Rxc6 {[%clk 0:01:44]} 33. Rd4 {[%clk 0:01:13]}  Rc5 {[%clk 0:01:34]} 34. Rxb4 {[%clk 0:01:12]}  Rg5 {[%clk 0:01:33]} 35. b3 {[%clk 0:01:02]}  Rxg2 {[%clk 0:01:33]} 36. Rxb5 {[%clk 0:01:02]}  e5 {[%clk 0:01:29]} 0-1


[Site "https://www.chess.com"]

[Event "Titled Tuesday Blitz January 17 Early 2023"]
[White "Mamedov, Edgar"]
[Black "Bodnaruk, Anastasia"]
[WhiteFideId "13739980"]
[BlackFideId "4181751"]
[WhiteElo "2193"]
[BlackElo "2350"]
[Result "1-0"]
[Round "10"]
[TimeControl "180+2"]
[Date "2023.01.17"]
[WhiteClock "0:00:11"]
[BlackClock "0:00:04"]

1. d4 {[%clk 0:02:59]}  Nf6 {[%clk 0:02:58]} 2. c4 {[%clk 0:02:59]}  g6 {[%clk 0:02:56]} 3. Nc3 {[%clk 0:02:59]}  Bg7 {[%clk 0:02:56]} 4. e4 {[%clk 0:02:59]}  d6 {[%clk 0:02:56]} 5. Nf3 {[%clk 0:02:59]}  O-O {[%clk 0:02:56]} 6. Be2 {[%clk 0:02:59]}  e5 {[%clk 0:02:56]} 7. d5 {[%clk 0:02:58]}  a5 {[%clk 0:02:55]} 8. Be3 {[%clk 0:02:58]}  Na6 {[%clk 0:02:54]} 9. Nd2 {[%clk 0:02:58]}  Nc5 {[%clk 0:02:48]} 10. g4 {[%clk 0:02:54]}  c6 {[%clk 0:02:46]} 11. h4 {[%clk 0:02:51]}  cxd5 {[%clk 0:02:35]} 12. cxd5 {[%clk 0:02:51]}  Bd7 {[%clk 0:02:26]} 13. a4 {[%clk 0:02:50]}  Na6 {[%clk 0:02:18]} 14. h5 {[%clk 0:02:47]}  Nb4 {[%clk 0:02:11]} 15. Kf1 {[%clk 0:02:44]}  Ne8 {[%clk 0:02:08]} 16. Nc4 {[%clk 0:02:28]}  f5 {[%clk 0:02:02]} 17. h6 {[%clk 0:02:24]}  Bf6 {[%clk 0:02:02]} 18. gxf5 {[%clk 0:02:20]}  gxf5 {[%clk 0:02:02]} 19. exf5 {[%clk 0:02:20]}  Bxf5 {[%clk 0:01:57]} 20. Nb6 {[%clk 0:02:12]}  Nc2 {[%clk 0:01:36]} 21. Nxa8 {[%clk 0:01:57]}  Nxe3+ {[%clk 0:01:36]} 22. fxe3 {[%clk 0:01:57]}  Bh4 {[%clk 0:01:22]} 23. Bf3 {[%clk 0:01:50]}  e4 {[%clk 0:01:15]} 24. Rg1+ {[%clk 0:01:43]}  Kh8 {[%clk 0:01:14]} 25. Nxe4 {[%clk 0:01:23]}  Bxe4 {[%clk 0:01:10]} 26. Qd4+ {[%clk 0:01:23]}  Nf6 {[%clk 0:01:09]} 27. Bxe4 {[%clk 0:01:19]}  Qxa8 {[%clk 0:01:04]} 28. Ke2 {[%clk 0:01:16]}  Qe8 {[%clk 0:00:35]} 29. Bf3 {[%clk 0:00:59]}  Qe5 {[%clk 0:00:25]} 30. Qxe5 {[%clk 0:00:52]}  dxe5 {[%clk 0:00:25]} 31. Rh1 {[%clk 0:00:37]}  Bg5 {[%clk 0:00:14]} 32. Rag1 {[%clk 0:00:29]}  e4 {[%clk 0:00:14]} 33. Rxg5 {[%clk 0:00:19]}  exf3+ {[%clk 0:00:14]} 34. Kxf3 {[%clk 0:00:19]}  Nxd5+ {[%clk 0:00:14]} 35. Ke2 {[%clk 0:00:17]}  Nb4 {[%clk 0:00:13]} 36. Rf1 {[%clk 0:00:14]}  Re8 {[%clk 0:00:13]} 37. Rxa5 {[%clk 0:00:12]}  Nc2 {[%clk 0:00:12]} 38. Re5 {[%clk 0:00:12]}  Rd8 {[%clk 0:00:05]} 39. Re7 {[%clk 0:00:12]}  Nb4 {[%clk 0:00:03]} 40. Rff7 {[%clk 0:00:11]}  Rc8 {[%clk 0:00:03]} 41. Rxh7+ {[%clk 0:00:11]}  Kg8 {[%clk 0:00:04]} 42. Reg7+ {[%clk 0:00:11]}  Kf8 {[%clk 0:00:04]} 43. Rh8# {[%clk 0:00:11]} 1-0


[Site "https://www.chess.com"]